[Event "Titled Tuesday Blitz November 14 Early 2023"]
[White "CrazyAdvenTures"]
[Black "Berezin, Viktor"]
[BlackFideId "14107872"]
[WhiteElo "2821"]
[BlackElo "2470"]
[Result "1-0"]
[Round "1"]
[TimeControl "180+1"]
[Date "2023.11.14"]
[WhiteClock "0:00:13"]
[BlackClock "0:00:17"]
[Board "76"]

1. e4 {[%clk 0:02:57]}  g6 {[%clk 0:02:58]} 2. d4 {[%clk 0:02:54]}  Bg7 {[%clk 0:02:56]} 3. Nc3 {[%clk 0:02:53]}  d6 {[%clk 0:02:54]} 4. Be3 {[%clk 0:02:52]}  c6 {[%clk 0:02:54]} 5. f4 {[%clk 0:02:51]}  Nf6 {[%clk 0:02:51]} 6. h3 {[%clk 0:02:46]}  b5 {[%clk 0:02:49]} 7. Bd3 {[%clk 0:02:43]}  O-O {[%clk 0:02:42]} 8. Nf3 {[%clk 0:02:42]}  Nbd7 {[%clk 0:02:40]} 9. e5 {[%clk 0:02:37]}  Ne8 {[%clk 0:02:38]} 10. O-O {[%clk 0:02:36]}  b4 {[%clk 0:02:37]} 11. Ne4 {[%clk 0:02:29]}  Nb6 {[%clk 0:02:36]} 12. Qe1 {[%clk 0:02:24]}  Nd5 {[%clk 0:02:35]} 13. Bd2 {[%clk 0:02:24]}  Nec7 {[%clk 0:02:13]} 14. c4 {[%clk 0:02:19]}  bxc3 {[%clk 0:02:12]} 15. bxc3 {[%clk 0:02:20]}  Ba6 {[%clk 0:02:07]} 16. Bxa6 {[%clk 0:02:09]}  Nxa6 {[%clk 0:02:08]} 17. c4 {[%clk 0:02:05]}  Nb6 {[%clk 0:02:07]} 18. Rc1 {[%clk 0:02:04]}  d5 {[%clk 0:01:58]} 19. cxd5 {[%clk 0:02:01]}  cxd5 {[%clk 0:01:56]} 20. Nc5 {[%clk 0:01:14]}  Nxc5 {[%clk 0:01:33]} 21. dxc5 {[%clk 0:01:15]}  Nc4 {[%clk 0:01:33]} 22. Bc3 {[%clk 0:01:15]}  e6 {[%clk 0:01:34]} 23. Nd2 {[%clk 0:01:09]}  Rc8 {[%clk 0:01:20]} 24. Bd4 {[%clk 0:00:59]}  Na3 {[%clk 0:00:56]} 25. Rf3 {[%clk 0:00:48]}  Nb5 {[%clk 0:00:56]} 26. Bf2 {[%clk 0:00:48]}  d4 {[%clk 0:00:53]} 27. Ne4 {[%clk 0:00:48]}  Qd5 {[%clk 0:00:52]} 28. a4 {[%clk 0:00:45]}  Nc3 {[%clk 0:00:43]} 29. Nxc3 {[%clk 0:00:44]}  dxc3 {[%clk 0:00:43]} 30. Rfxc3 {[%clk 0:00:45]}  Rfd8 {[%clk 0:00:42]} 31. c6 {[%clk 0:00:42]}  Rc7 {[%clk 0:00:42]} 32. Qe2 {[%clk 0:00:28]}  Bh6 {[%clk 0:00:40]} 33. Qe3 {[%clk 0:00:22]}  Bf8 {[%clk 0:00:40]} 34. Kh2 {[%clk 0:00:20]}  h5 {[%clk 0:00:34]} 35. Bh4 {[%clk 0:00:20]}  Rb8 {[%clk 0:00:32]} 36. Rd3 {[%clk 0:00:17]}  Qa2 {[%clk 0:00:32]} 37. Qf3 {[%clk 0:00:13]}  Rb2 {[%clk 0:00:32]} 38. Rd8 {[%clk 0:00:13]}  Kg7 {[%clk 0:00:24]} 39. Bf6+ {[%clk 0:00:13]}  Kg8 {[%clk 0:00:24]} 40. Rcd1 {[%clk 0:00:13]}  Re2 {[%clk 0:00:17]} 41. Rxf8+ {[%clk 0:00:13]} 1-0


[Site "https://www.chess.com"]

[Event "Titled Tuesday Blitz November 14 Early 2023"]
[White "Aash20"]
[Black "Pendos666"]
[WhiteElo "2469"]
[BlackElo "2820"]
[Result "0-1"]
[Round "1"]
[TimeControl "180+1"]
[Date "2023.11.14"]
[WhiteClock "0:00:39"]
[BlackClock "0:00:43"]
[Board "77"]

1. e4 {[%clk 0:03:00]}  c5 {[%clk 0:02:59]} 2. Nf3 {[%clk 0:03:00]}  g6 {[%clk 0:02:59]} 3. d4 {[%clk 0:02:54]}  cxd4 {[%clk 0:03:00]} 4. Nxd4 {[%clk 0:02:54]}  Nc6 {[%clk 0:02:59]} 5. c4 {[%clk 0:02:54]}  d6 {[%clk 0:02:59]} 6. Nc3 {[%clk 0:02:53]}  Nf6 {[%clk 0:02:58]} 7. Be3 {[%clk 0:02:53]}  Ng4 {[%clk 0:02:56]} 8. Nxc6 {[%clk 0:02:51]}  Nxe3 {[%clk 0:02:44]} 9. Nxd8 {[%clk 0:02:44]}  Nxd1 {[%clk 0:02:44]} 10. Rxd1 {[%clk 0:02:25]}  Kxd8 {[%clk 0:02:43]} 11. e5 {[%clk 0:02:25]}  Bg7 {[%clk 0:02:34]} 12. exd6 {[%clk 0:02:25]}  exd6 {[%clk 0:02:33]} 13. Rxd6+ {[%clk 0:02:24]}  Kc7 {[%clk 0:02:05]} 14. Nb5+ {[%clk 0:02:23]}  Kb8 {[%clk 0:02:05]} 15. Rd2 {[%clk 0:02:21]}  Bh6 {[%clk 0:01:41]} 16. Rd1 {[%clk 0:02:12]}  Bg7 {[%clk 0:01:30]} 17. b3 {[%clk 0:02:08]}  Bg4 {[%clk 0:01:27]} 18. f3 {[%clk 0:02:07]}  Be6 {[%clk 0:01:26]} 19. Be2 {[%clk 0:02:06]}  a6 {[%clk 0:01:26]} 20. Nd4 {[%clk 0:02:05]}  Bd7 {[%clk 0:01:26]} 21. O-O {[%clk 0:02:04]}  Kc7 {[%clk 0:01:26]} 22. f4 {[%clk 0:01:59]}  Rad8 {[%clk 0:01:25]} 23. Nf3 {[%clk 0:01:57]}  Rhe8 {[%clk 0:01:22]} 24. Kf2 {[%clk 0:01:55]}  Bg4 {[%clk 0:01:14]} 25. Rxd8 {[%clk 0:01:47]}  Rxd8 {[%clk 0:01:14]} 26. Rd1 {[%clk 0:01:47]}  Rxd1 {[%clk 0:01:13]} 27. Bxd1 {[%clk 0:01:47]}  Bf5 {[%clk 0:01:12]} 28. Ke3 {[%clk 0:01:43]}  Bb1 {[%clk 0:01:10]} 29. a4 {[%clk 0:01:41]}  h6 {[%clk 0:01:08]} 30. g4 {[%clk 0:01:36]}  Kd6 {[%clk 0:01:08]} 31. b4 {[%clk 0:01:32]}  a5 {[%clk 0:01:07]} 32. c5+ {[%clk 0:01:31]}  Kc6 {[%clk 0:01:02]} 33. bxa5 {[%clk 0:01:29]}  Kxc5 {[%clk 0:01:01]} 34. Ne5 {[%clk 0:01:27]}  f6 {[%clk 0:01:00]} 35. Nf3 {[%clk 0:01:25]}  Kb4 {[%clk 0:00:59]} 36. Nd4 {[%clk 0:01:19]}  Bf8 {[%clk 0:00:56]} 37. Bf3 {[%clk 0:01:18]}  Bc5 {[%clk 0:00:55]} 38. Bxb7 {[%clk 0:01:14]}  Kc3 {[%clk 0:00:54]} 39. Be4 {[%clk 0:01:10]}  Bxd4+ {[%clk 0:00:53]} 40. Kf3 {[%clk 0:01:11]}  Bd3 {[%clk 0:00:51]} 41. h4 {[%clk 0:01:06]}  f5 {[%clk 0:00:50]} 42. Bc6 {[%clk 0:00:54]}  fxg4+ {[%clk 0:00:48]} 43. Kxg4 {[%clk 0:00:54]}  Bf5+ {[%clk 0:00:48]} 44. Kg3 {[%clk 0:00:53]}  h5 {[%clk 0:00:48]} 45. Bb7 {[%clk 0:00:51]}  Kb4 {[%clk 0:00:47]} 46. a6 {[%clk 0:00:51]}  Kxa4 {[%clk 0:00:47]} 47. Kf3 {[%clk 0:00:45]}  Kb4 {[%clk 0:00:47]} 48. Kg3 {[%clk 0:00:45]}  Kc3 {[%clk 0:00:47]} 49. Kf3 {[%clk 0:00:44]}  Kd2 {[%clk 0:00:48]} 50. Bd5 {[%clk 0:00:40]}  Bg4+ {[%clk 0:00:46]} 51. Kg3 {[%clk 0:00:40]}  Ke3 {[%clk 0:00:46]} 52. Bf7 {[%clk 0:00:39]}  Bf5 {[%clk 0:00:46]} 53. Be8 {[%clk 0:00:39]}  Ba7 {[%clk 0:00:46]} 54. Bc6 {[%clk 0:00:38]}  Bb8 {[%clk 0:00:46]} 55. Kg2 {[%clk 0:00:37]}  Kxf4 {[%clk 0:00:45]} 56. Bf3 {[%clk 0:00:37]}  Be4 {[%clk 0:00:44]} 57. Bxe4 {[%clk 0:00:37]}  Kxe4 {[%clk 0:00:44]} 58. Kh3 {[%clk 0:00:38]}  Kf5 {[%clk 0:00:43]} 59. Kg2 {[%clk 0:00:38]}  Kg4 {[%clk 0:00:44]} 60. Kf2 {[%clk 0:00:37]}  Kxh4 {[%clk 0:00:44]} 61. Ke3 {[%clk 0:00:38]}  Kg4 {[%clk 0:00:43]} 62. Kd4 {[%clk 0:00:39]} 0-1


[Site "https://www.chess.com"]

[Event "Titled Tuesday Blitz November 14 Early 2023"]
[White "Shishkov, Andrei"]
[Black "Lobanov, Sergei"]
[WhiteFideId "4500563"]
[BlackFideId "24183750"]
[WhiteElo "2467"]
[BlackElo "2818"]
[Result "1-0"]
[Round "1"]
[TimeControl "180+1"]
[Date "2023.11.14"]
[WhiteClock "0:00:06"]
[BlackClock "0:00:02"]
[Board "79"]

1. d4 {[%clk 0:03:00]}  Nf6 {[%clk 0:02:59]} 2. c4 {[%clk 0:02:58]}  e6 {[%clk 0:02:59]} 3. Nc3 {[%clk 0:02:58]}  d5 {[%clk 0:02:58]} 4. cxd5 {[%clk 0:02:57]}  exd5 {[%clk 0:02:59]} 5. Bg5 {[%clk 0:02:57]}  Be7 {[%clk 0:02:58]} 6. e3 {[%clk 0:02:58]}  c6 {[%clk 0:02:59]} 7. Bd3 {[%clk 0:02:58]}  O-O {[%clk 0:02:59]} 8. Nge2 {[%clk 0:02:56]}  Re8 {[%clk 0:02:52]} 9. Qc2 {[%clk 0:02:55]}  h6 {[%clk 0:02:51]} 10. Bh4 {[%clk 0:02:55]}  Nh5 {[%clk 0:02:38]} 11. Bxe7 {[%clk 0:02:53]}  Qxe7 {[%clk 0:02:39]} 12. O-O-O {[%clk 0:02:49]}  a5 {[%clk 0:02:25]} 13. Rhg1 {[%clk 0:02:36]}  Nf6 {[%clk 0:02:25]} 14. h3 {[%clk 0:02:15]}  Na6 {[%clk 0:02:25]} 15. Qd2 {[%clk 0:02:14]}  Nb4 {[%clk 0:02:09]} 16. Bb1 {[%clk 0:02:14]}  b5 {[%clk 0:02:07]} 17. g4 {[%clk 0:02:12]}  Ne4 {[%clk 0:01:59]} 18. Nxe4 {[%clk 0:02:06]}  dxe4 {[%clk 0:01:59]} 19. Ng3 {[%clk 0:02:00]}  Be6 {[%clk 0:01:59]} 20. Nf5 {[%clk 0:01:49]}  Qd7 {[%clk 0:01:59]} 21. a3 {[%clk 0:01:45]}  Na2+ {[%clk 0:01:54]} 22. Bxa2 {[%clk 0:01:42]}  Bxa2 {[%clk 0:01:55]} 23. Qc3 {[%clk 0:01:39]}  Bd5 {[%clk 0:01:39]} 24. Qc5 {[%clk 0:01:36]}  b4 {[%clk 0:01:13]} 25. a4 {[%clk 0:01:35]}  Bb3 {[%clk 0:01:14]} 26. Rd2 {[%clk 0:01:31]}  Bxa4 {[%clk 0:01:14]} 27. g5 {[%clk 0:01:29]}  hxg5 {[%clk 0:00:43]} 28. Rxg5 {[%clk 0:01:09]}  g6 {[%clk 0:00:42]} 29. d5 {[%clk 0:01:09]}  Rac8 {[%clk 0:00:37]} 30. Qd4 {[%clk 0:01:06]}  cxd5+ {[%clk 0:00:31]} 31. Kb1 {[%clk 0:01:06]}  Qxf5 {[%clk 0:00:24]} 32. Rxf5 {[%clk 0:01:06]}  gxf5 {[%clk 0:00:25]} 33. Qxd5 {[%clk 0:00:56]}  Rc6 {[%clk 0:00:22]} 34. f4 {[%clk 0:00:43]}  exf3 {[%clk 0:00:20]} 35. Qxf3 {[%clk 0:00:42]}  Rec8 {[%clk 0:00:20]} 36. Rg2+ {[%clk 0:00:42]}  Kf8 {[%clk 0:00:21]} 37. Rg1 {[%clk 0:00:32]}  Bc2+ {[%clk 0:00:19]} 38. Ka2 {[%clk 0:00:31]}  Be4 {[%clk 0:00:18]} 39. Qh5 {[%clk 0:00:27]}  Bd5+ {[%clk 0:00:16]} 40. Kb1 {[%clk 0:00:26]}  Be4+ {[%clk 0:00:16]} 41. Ka2 {[%clk 0:00:19]}  Bd5+ {[%clk 0:00:09]} 42. Kb1 {[%clk 0:00:17]}  Be6 {[%clk 0:00:09]} 43. Qh6+ {[%clk 0:00:16]}  Ke7 {[%clk 0:00:10]} 44. Qg5+ {[%clk 0:00:17]}  Ke8 {[%clk 0:00:10]} 45. Qg8+ {[%clk 0:00:16]}  Ke7 {[%clk 0:00:10]} 46. Qg5+ {[%clk 0:00:17]}  Ke8 {[%clk 0:00:11]} 47. Qg8+ {[%clk 0:00:16]}  Kd7 {[%clk 0:00:10]} 48. Rd1+ {[%clk 0:00:16]}  Kc7 {[%clk 0:00:10]} 49. Qg7 {[%clk 0:00:16]}  Kb7 {[%clk 0:00:10]} 50. Qd4 {[%clk 0:00:16]}  R8c7 {[%clk 0:00:08]} 51. Qe5 {[%clk 0:00:16]}  Ka6 {[%clk 0:00:06]} 52. Rd6 {[%clk 0:00:14]}  Kb6 {[%clk 0:00:02]} 53. Rxc6+ {[%clk 0:00:14]}  Rxc6 {[%clk 0:00:03]} 54. h4 {[%clk 0:00:14]}  a4 {[%clk 0:00:04]} 55. h5 {[%clk 0:00:14]}  a3 {[%clk 0:00:04]} 56. bxa3 {[%clk 0:00:14]}  bxa3 {[%clk 0:00:05]} 57. Qd4+ {[%clk 0:00:11]}  Ka5 {[%clk 0:00:04]} 58. Qd2+ {[%clk 0:00:11]}  Ka4 {[%clk 0:00:05]} 59. h6 {[%clk 0:00:11]}  a2+ {[%clk 0:00:04]} 60. Ka1 {[%clk 0:00:11]}  Rb6 {[%clk 0:00:03]} 61. Qc2+ {[%clk 0:00:10]}  Bb3 {[%clk 0:00:02]} 62. Qd2 {[%clk 0:00:09]}  Bc4 {[%clk 0:00:02]} 63. Qc2+ {[%clk 0:00:09]}  Bb3 {[%clk 0:00:02]} 64. Qd3 {[%clk 0:00:08]}  Rxh6 {[%clk 0:00:02]} 65. Qd4+ {[%clk 0:00:07]}  Ka3 {[%clk 0:00:03]} 66. Qa7+ {[%clk 0:00:05]}  Kb4 {[%clk 0:00:03]} 67. Qb8+ {[%clk 0:00:05]}  Kc3 {[%clk 0:00:03]} 68. Qe5+ {[%clk 0:00:05]}  Kb4 {[%clk 0:00:02]} 69. Qd4+ {[%clk 0:00:04]}  Ka3 {[%clk 0:00:02]} 70. Qa7+ {[%clk 0:00:04]}  Kb4 {[%clk 0:00:02]} 71. Qd4+ {[%clk 0:00:04]}  Kb5 {[%clk 0:00:02]} 72. Qe5+ {[%clk 0:00:04]}  Ka4 {[%clk 0:00:03]} 73. Qd4+ {[%clk 0:00:04]}  Kb5 {[%clk 0:00:03]} 74. Qe5+ {[%clk 0:00:04]}  Kc4 {[%clk 0:00:03]} 75. Qf4+ {[%clk 0:00:05]}  Kc3 {[%clk 0:00:03]} 76. Qxh6 {[%clk 0:00:06]}  Kc2 {[%clk 0:00:03]} 77. Qf4 {[%clk 0:00:06]}  Kd3 {[%clk 0:00:02]} 78. Qxf5+ {[%clk 0:00:06]} 1-0


[Site "https://www.chess.com"]

[Event "Titled Tuesday Blitz November 14 Early 2023"]
[White "Vakhlamov, Igor L."]
[Black "Rengifo Blancas, Renzo Jhonathan"]
[WhiteFideId "24126748"]
[BlackFideId "3807185"]
[WhiteElo "2817"]
[BlackElo "2466"]
[Result "1-0"]
[Round "1"]
[TimeControl "180+1"]
[Date "2023.11.14"]
[WhiteClock "0:00:21"]
[BlackClock "0:01:12"]
[Board "80"]

1. e4 {[%clk 0:03:00]}  e5 {[%clk 0:02:55]} 2. Nf3 {[%clk 0:03:01]}  Nc6 {[%clk 0:02:55]} 3. Nc3 {[%clk 0:03:02]}  Nf6 {[%clk 0:02:55]} 4. Bb5 {[%clk 0:03:02]}  Bb4 {[%clk 0:02:54]} 5. Nd5 {[%clk 0:03:01]}  Be7 {[%clk 0:02:48]} 6. Nxe7 {[%clk 0:03:01]}  Qxe7 {[%clk 0:02:48]} 7. O-O {[%clk 0:03:01]}  O-O {[%clk 0:02:48]} 8. Re1 {[%clk 0:03:02]}  d6 {[%clk 0:02:48]} 9. h3 {[%clk 0:03:02]}  Bd7 {[%clk 0:02:37]} 10. c3 {[%clk 0:03:02]}  a6 {[%clk 0:02:35]} 11. Bf1 {[%clk 0:03:01]}  b5 {[%clk 0:02:34]} 12. a4 {[%clk 0:02:56]}  Rfe8 {[%clk 0:02:33]} 13. axb5 {[%clk 0:02:55]}  axb5 {[%clk 0:02:34]} 14. Rxa8 {[%clk 0:02:55]}  Rxa8 {[%clk 0:02:33]} 15. Bxb5 {[%clk 0:02:56]}  h6 {[%clk 0:02:33]} 16. Bf1 {[%clk 0:02:22]}  Ra1 {[%clk 0:02:30]} 17. Qc2 {[%clk 0:02:19]}  Qe6 {[%clk 0:02:08]} 18. d4 {[%clk 0:02:13]}  Qa2 {[%clk 0:02:05]} 19. dxe5 {[%clk 0:01:55]}  dxe5 {[%clk 0:02:04]} 20. Be3 {[%clk 0:01:47]}  Be6 {[%clk 0:02:03]} 21. Rxa1 {[%clk 0:01:43]}  Qxa1 {[%clk 0:02:04]} 22. Nd2 {[%clk 0:01:43]}  Na5 {[%clk 0:02:00]} 23. Kh2 {[%clk 0:01:31]}  Qa2 {[%clk 0:01:54]} 24. Bd3 {[%clk 0:01:24]}  Nd7 {[%clk 0:01:39]} 25. b4 {[%clk 0:01:23]}  Qxc2 {[%clk 0:01:29]} 26. Bxc2 {[%clk 0:01:23]}  Nc4 {[%clk 0:01:30]} 27. Nxc4 {[%clk 0:01:22]}  Bxc4 {[%clk 0:01:31]} 28. g3 {[%clk 0:01:11]}  f6 {[%clk 0:01:31]} 29. f4 {[%clk 0:01:10]}  Kh8 {[%clk 0:01:30]} 30. Kg2 {[%clk 0:01:10]}  Kg8 {[%clk 0:01:31]} 31. Kf2 {[%clk 0:01:10]}  Kf7 {[%clk 0:01:31]} 32. Ba4 {[%clk 0:01:09]}  Nb6 {[%clk 0:01:30]} 33. Bc6 {[%clk 0:01:08]}  Ke6 {[%clk 0:01:30]} 34. Bc5 {[%clk 0:01:06]}  Nd7 {[%clk 0:01:28]} 35. Be3 {[%clk 0:00:36]}  Kd6 {[%clk 0:01:22]} 36. Ba4 {[%clk 0:00:36]}  Nb6 {[%clk 0:01:22]} 37. Bc5+ {[%clk 0:00:36]}  Ke6 {[%clk 0:01:21]} 38. Bc6 {[%clk 0:00:31]}  Nd7 {[%clk 0:01:19]} 39. f5+ {[%clk 0:00:31]}  Kf7 {[%clk 0:01:14]} 40. Bxd7 {[%clk 0:00:32]}  g6 {[%clk 0:01:14]} 41. g4 {[%clk 0:00:32]}  h5 {[%clk 0:01:14]} 42. Ke3 {[%clk 0:00:29]}  Bf1 {[%clk 0:01:13]} 43. b5 {[%clk 0:00:25]}  h4 {[%clk 0:01:13]} 44. fxg6+ {[%clk 0:00:23]}  Kxg6 {[%clk 0:01:12]} 45. Bf5+ {[%clk 0:00:23]}  Kg5 {[%clk 0:01:12]} 46. Kf2 {[%clk 0:00:21]}  Bxh3 {[%clk 0:01:12]} 47. Be3# {[%clk 0:00:21]} 1-0


[Site "https://www.chess.com"]

[Event "Titled Tuesday Blitz November 14 Early 2023"]
[White "arenal72"]
[Black "Maksimovic, Bojan"]
[BlackFideId "14408120"]
[WhiteElo "2465"]
[BlackElo "2817"]
[Result "0-1"]
[Round "1"]
[TimeControl "180+1"]
[Date "2023.11.14"]
[WhiteClock "0:00:04"]
[BlackClock "0:00:10"]
[Board "81"]

1. Nf3 {[%clk 0:02:59]}  g6 {[%clk 0:02:58]} 2. g3 {[%clk 0:02:57]}  Bg7 {[%clk 0:02:58]} 3. Bg2 {[%clk 0:02:57]}  d6 {[%clk 0:02:58]} 4. O-O {[%clk 0:02:57]}  Bd7 {[%clk 0:02:59]} 5. c4 {[%clk 0:02:57]}  Qc8 {[%clk 0:02:59]} 6. d4 {[%clk 0:02:56]}  Bh3 {[%clk 0:02:59]} 7. e4 {[%clk 0:02:55]}  Nc6 {[%clk 0:02:52]} 8. Nc3 {[%clk 0:02:53]}  h5 {[%clk 0:02:50]} 9. Bg5 {[%clk 0:02:49]}  f6 {[%clk 0:02:45]} 10. Be3 {[%clk 0:02:46]}  g5 {[%clk 0:02:34]} 11. d5 {[%clk 0:02:40]}  Ne5 {[%clk 0:02:34]} 12. Nxe5 {[%clk 0:02:40]}  dxe5 {[%clk 0:02:30]} 13. Bxh3 {[%clk 0:02:37]}  Qxh3 {[%clk 0:02:30]} 14. Qf3 {[%clk 0:02:37]}  h4 {[%clk 0:01:54]} 15. Qg2 {[%clk 0:02:36]}  Qd7 {[%clk 0:01:53]} 16. g4 {[%clk 0:02:36]}  h3 {[%clk 0:01:53]} 17. Qg3 {[%clk 0:02:33]}  a6 {[%clk 0:01:31]} 18. f3 {[%clk 0:02:30]}  Kf7 {[%clk 0:01:31]} 19. c5 {[%clk 0:02:17]}  e6 {[%clk 0:01:24]} 20. Rfd1 {[%clk 0:02:11]}  Ne7 {[%clk 0:01:24]} 21. d6 {[%clk 0:02:06]}  Nc6 {[%clk 0:01:22]} 22. dxc7 {[%clk 0:02:04]}  Qxc7 {[%clk 0:01:23]} 23. Rd2 {[%clk 0:01:54]}  Rad8 {[%clk 0:01:14]} 24. Rad1 {[%clk 0:01:53]}  Rxd2 {[%clk 0:01:13]} 25. Rxd2 {[%clk 0:01:54]}  Rd8 {[%clk 0:01:12]} 26. Qe1 {[%clk 0:01:45]}  Bf8 {[%clk 0:01:09]} 27. Rxd8 {[%clk 0:01:38]}  Qxd8 {[%clk 0:01:10]} 28. Kf2 {[%clk 0:01:37]}  Qa5 {[%clk 0:01:06]} 29. Kg3 {[%clk 0:01:27]}  Bxc5 {[%clk 0:01:04]} 30. Kxh3 {[%clk 0:01:24]}  Bd4 {[%clk 0:00:59]} 31. Qd2 {[%clk 0:01:10]}  Bxc3 {[%clk 0:00:55]} 32. bxc3 {[%clk 0:01:10]}  Qd8 {[%clk 0:00:52]} 33. Qxd8 {[%clk 0:01:03]}  Nxd8 {[%clk 0:00:53]} 34. Kg3 {[%clk 0:01:03]}  Kg6 {[%clk 0:00:50]} 35. h4 {[%clk 0:01:03]}  gxh4+ {[%clk 0:00:50]} 36. Kxh4 {[%clk 0:01:04]}  f5 {[%clk 0:00:49]} 37. Bb6 {[%clk 0:00:54]}  Nf7 {[%clk 0:00:33]} 38. exf5+ {[%clk 0:00:35]}  exf5 {[%clk 0:00:34]} 39. Bc7 {[%clk 0:00:35]}  e4 {[%clk 0:00:12]} 40. fxe4 {[%clk 0:00:35]}  fxe4 {[%clk 0:00:13]} 41. Kg3 {[%clk 0:00:35]}  Ng5 {[%clk 0:00:13]} 42. a4 {[%clk 0:00:29]}  Ne6 {[%clk 0:00:13]} 43. Bd6 {[%clk 0:00:28]}  Kg5 {[%clk 0:00:13]} 44. Be7+ {[%clk 0:00:28]}  Kg6 {[%clk 0:00:13]} 45. Kf2 {[%clk 0:00:25]}  Kf7 {[%clk 0:00:13]} 46. Bd6 {[%clk 0:00:24]}  Ng5 {[%clk 0:00:05]} 47. Ke3 {[%clk 0:00:23]}  Ke6 {[%clk 0:00:05]} 48. Bf4 {[%clk 0:00:24]}  Nf7 {[%clk 0:00:05]} 49. Kxe4 {[%clk 0:00:23]}  Nd8 {[%clk 0:00:05]} 50. c4 {[%clk 0:00:22]}  Nc6 {[%clk 0:00:06]} 51. g5 {[%clk 0:00:22]}  Ne7 {[%clk 0:00:06]} 52. Be5 {[%clk 0:00:20]}  Ng6 {[%clk 0:00:05]} 53. Bf6 {[%clk 0:00:21]}  Nh4 {[%clk 0:00:05]} 54. a5 {[%clk 0:00:20]}  Kd6 {[%clk 0:00:04]} 55. Kf4 {[%clk 0:00:14]}  Ke6 {[%clk 0:00:04]} 56. Kg4 {[%clk 0:00:14]}  Ng6 {[%clk 0:00:04]} 57. Bd4 {[%clk 0:00:13]}  Ne7 {[%clk 0:00:03]} 58. Bc3 {[%clk 0:00:10]}  Ng6 {[%clk 0:00:04]} 59. Kh5 {[%clk 0:00:08]}  Kf7 {[%clk 0:00:04]} 60. Kh6 {[%clk 0:00:07]}  Ne7 {[%clk 0:00:04]} 61. Be5 {[%clk 0:00:07]}  Ng6 {[%clk 0:00:04]} 62. Bd6 {[%clk 0:00:06]}  Nh4 {[%clk 0:00:04]} 63. Be5 {[%clk 0:00:05]}  Ng6 {[%clk 0:00:05]} 64. Bd4 {[%clk 0:00:05]}  Nh4 {[%clk 0:00:05]} 65. Kh5 {[%clk 0:00:05]}  Ng6 {[%clk 0:00:05]} 66. Kg4 {[%clk 0:00:05]}  Ke6 {[%clk 0:00:05]} 67. Kf3 {[%clk 0:00:04]}  Kf5 {[%clk 0:00:05]} 68. Bf6 {[%clk 0:00:04]}  Ke6 {[%clk 0:00:03]} 69. Ke4 {[%clk 0:00:04]}  Nh4 {[%clk 0:00:04]} 70. Kd4 {[%clk 0:00:04]}  Kd6 {[%clk 0:00:05]} 71. c5+ {[%clk 0:00:04]}  Ke6 {[%clk 0:00:05]} 72. Kc4 {[%clk 0:00:04]}  Nf5 {[%clk 0:00:04]} 73. c6 {[%clk 0:00:04]}  bxc6 {[%clk 0:00:04]} 74. Kc5 {[%clk 0:00:04]}  Kd7 {[%clk 0:00:05]} 75. Kb6 {[%clk 0:00:04]}  Nd6 {[%clk 0:00:02]} 76. Kxa6 {[%clk 0:00:04]}  Nc4 {[%clk 0:00:02]} 77. Kb7 {[%clk 0:00:04]}  Nxa5+ {[%clk 0:00:01]} 78. Kb6 {[%clk 0:00:04]}  Nc4+ {[%clk 0:00:02]} 79. Kc5 {[%clk 0:00:05]}  Nd6 {[%clk 0:00:03]} 80. g6 {[%clk 0:00:04]}  Ne4+ {[%clk 0:00:03]} 81. Kd4 {[%clk 0:00:02]}  Nxf6 {[%clk 0:00:04]} 82. Ke5 {[%clk 0:00:03]}  Ke7 {[%clk 0:00:05]} 83. g7 {[%clk 0:00:02]}  Ng8 {[%clk 0:00:05]} 84. Kd4 {[%clk 0:00:02]}  Kd6 {[%clk 0:00:05]} 85. Kc4 {[%clk 0:00:03]}  c5 {[%clk 0:00:06]} 86. Kb5 {[%clk 0:00:03]}  Kd5 {[%clk 0:00:07]} 87. Ka4 {[%clk 0:00:03]}  c4 {[%clk 0:00:08]} 88. Ka3 {[%clk 0:00:03]}  Kd4 {[%clk 0:00:09]} 89. Kb2 {[%clk 0:00:04]}  Kd3 {[%clk 0:00:09]} 90. Kc1 {[%clk 0:00:05]}  Kc3 {[%clk 0:00:10]} 91. Kd1 {[%clk 0:00:04]}  Kb2 {[%clk 0:00:10]} 0-1


[Site "https://www.chess.com"]

[Event "Titled Tuesday Blitz November 14 Early 2023"]
[White "Kopylov, Alexander A."]
[Black "lagunanivaria"]
[WhiteFideId "4164857"]
[WhiteElo "2812"]
[BlackElo "2463"]
[Result "1/2-1/2"]
[Round "1"]
[TimeControl "180+1"]
[Date "2023.11.14"]
[WhiteClock "0:01:47"]
[BlackClock "0:01:54"]
[Board "82"]

1. d4 {[%clk 0:03:00]}  d5 {[%clk 0:02:58]} 2. Nf3 {[%clk 0:03:00]}  Nf6 {[%clk 0:02:55]} 3. g3 {[%clk 0:03:00]}  g6 {[%clk 0:02:54]} 4. Bg2 {[%clk 0:03:01]}  Bg7 {[%clk 0:02:54]} 5. O-O {[%clk 0:03:02]}  O-O {[%clk 0:02:55]} 6. a4 {[%clk 0:03:02]}  a5 {[%clk 0:02:54]} 7. Nc3 {[%clk 0:03:02]}  c6 {[%clk 0:02:54]} 8. Bf4 {[%clk 0:03:02]}  Nbd7 {[%clk 0:02:51]} 9. Qc1 {[%clk 0:03:00]}  Re8 {[%clk 0:02:51]} 10. Bh6 {[%clk 0:03:01]}  e5 {[%clk 0:02:46]} 11. Bxg7 {[%clk 0:03:00]}  Kxg7 {[%clk 0:02:46]} 12. dxe5 {[%clk 0:03:00]}  Nxe5 {[%clk 0:02:45]} 13. Nxe5 {[%clk 0:02:58]}  Rxe5 {[%clk 0:02:46]} 14. Qf4 {[%clk 0:02:55]}  Qe7 {[%clk 0:02:42]} 15. Rfe1 {[%clk 0:02:51]}  Bf5 {[%clk 0:02:41]} 16. Rac1 {[%clk 0:02:49]}  Re8 {[%clk 0:02:40]} 17. Qd4 {[%clk 0:02:48]}  h5 {[%clk 0:02:33]} 18. Qb6 {[%clk 0:02:46]}  Ra8 {[%clk 0:02:21]} 19. e3 {[%clk 0:02:42]}  Qb4 {[%clk 0:02:19]} 20. Qd4 {[%clk 0:02:41]}  Rae8 {[%clk 0:02:15]} 21. Qxb4 {[%clk 0:02:21]}  axb4 {[%clk 0:02:15]} 22. Ne2 {[%clk 0:02:18]}  Be4 {[%clk 0:02:12]} 23. c3 {[%clk 0:02:13]}  Bxg2 {[%clk 0:02:09]} 24. Kxg2 {[%clk 0:02:14]}  Re4 {[%clk 0:02:06]} 25. Red1 {[%clk 0:02:04]}  bxc3 {[%clk 0:02:05]} 26. b3 {[%clk 0:02:04]}  Rb4 {[%clk 0:02:00]} 27. Rxc3 {[%clk 0:01:47]}  Ne4 {[%clk 0:02:00]} 28. Rcd3 {[%clk 0:01:47]}  Nc5 {[%clk 0:01:59]} 29. Rc3 {[%clk 0:01:48]}  Ne4 {[%clk 0:01:59]} 30. Rcd3 {[%clk 0:01:47]}  Nc5 {[%clk 0:01:58]} 31. Rc3 {[%clk 0:01:47]}  Ne4 {[%clk 0:01:54]} 1/2-1/2


[Site "https://www.chess.com"]

[Event "Titled Tuesday Blitz November 14 Early 2023"]
[White "Devaev, Alexander"]
[Black "Dragun, Kamil"]
[WhiteFideId "4169395"]
[BlackFideId "1134167"]
[WhiteElo "2460"]
[BlackElo "2810"]
[Result "0-1"]
[Round "1"]
[TimeControl "180+1"]
[Date "2023.11.14"]
[WhiteClock "0:02:05"]
[BlackClock "0:02:31"]
[Board "83"]

1. d4 {[%clk 0:02:45]}  Nf6 {[%clk 0:02:54]} 2. c4 {[%clk 0:02:38]}  e6 {[%clk 0:02:55]} 3. Nf3 {[%clk 0:02:36]}  d5 {[%clk 0:02:53]} 4. Nc3 {[%clk 0:02:36]}  c6 {[%clk 0:02:52]} 5. Bg5 {[%clk 0:02:32]}  h6 {[%clk 0:02:51]} 6. Bh4 {[%clk 0:02:32]}  dxc4 {[%clk 0:02:48]} 7. e4 {[%clk 0:02:27]}  g5 {[%clk 0:02:48]} 8. Bg3 {[%clk 0:02:27]}  b5 {[%clk 0:02:48]} 9. h4 {[%clk 0:02:25]}  g4 {[%clk 0:02:46]} 10. Nh2 {[%clk 0:02:25]}  b4 {[%clk 0:02:37]} 11. Nb1 {[%clk 0:02:20]}  Nxe4 {[%clk 0:02:36]} 12. Bxc4 {[%clk 0:02:20]}  Nxg3 {[%clk 0:02:33]} 13. fxg3 {[%clk 0:02:21]}  h5 {[%clk 0:02:33]} 14. O-O {[%clk 0:02:19]}  Bg7 {[%clk 0:02:32]} 15. Qe2 {[%clk 0:02:11]}  Qxd4+ {[%clk 0:02:31]} 16. Kh1 {[%clk 0:02:05]}  Qxb2 {[%clk 0:02:31]} 0-1


[Site "https://www.chess.com"]